Workbook

Sheet MAPE-T
A1: ID | B1: Original APE | C1: Sum of differences | D1: LN Original Values | E1: MAPE-T | F1: MAPE-R | G1: Optimal Lambda | L1: Maximize this value
A2: 01001 | B2: 10.70202145 | C2: =(E2-J$6)^2 -> 2.241840483 | D2: =LN(B2) -> 2.370432644 | E2: =((B2^G$2)-G$2)/G$2 -> 6.003369866 | F2: =E2*($K$6/$J$6) -> 5.893170877 | G2: 0.2722449043 | H2: =-(COUNT(B2:B2482)/2) -> -1240.5 | I2: =LN((1/COUNT(B2:B2482))*SUM(C2:C2482)) -> 0.8974578226 | J2: =(G2-1) -> -0.7277550957 | K2: =SUM(D2:D2482) -> 3259.081482 | L2: =(H2*I2+J2*K2) -> -3485.109585 | M2: 01001 | N2: Autauga | O2: Alabama
A3: 01003 | B3: 16.85881783 | C3: 5.854505738 | D3: 2.824873833 | E3: =((B3^G$2)-G$2)/G$2 -> 6.925700767 | F3: =E3*($K$6/$J$6) -> 6.798571299 | M3: 01003 | N3: Baldwin | O3: Alabama
A4: 01005 | B4: 7.295421791 | C4: 0.6456128648 | D4: 1.987247 | E4: 5.309592557 | F4: 5.212128676 | M4: 01005 | N4: Barbour | O4: Alabama
A5: 01007 | B5: 9.184827194 | C5: 1.468398539 | D5: 2.217552905 | E5: 5.717867129 | F5: 5.612908882 | I5: Original | J5: MAPE-T | K5: MAPE-R | M5: 01007 | N5: Bibb | O5: Alabama
A6: 01011 | B6: 7.626249053 | C6: 0.7746517583 | D6: 2.031596119 | E6: 5.386235208 | F6: 5.287364459 | H6: Average | I6: =AVERAGE(B2:B2482) -> 6.215480542 | J6: =AVERAGE(E2:E2482) -> 4.506092175 | K6: =((G2)*(J6+1))^(1/G2) -> 4.423377498 | M6: 01011 | N6: Bullock | O6: Alabama
A7: 01013 | B7: 2.194695793 | C7: 0.9147881594 | D7: 0.7860434462 | E7: 3.549646589 | F7: 3.484488607 | H7: Skew | I7: =SKEW(B2:B2482) -> 2.098865117 | J7: =SKEW(E2:E2482) -> -0.01636419377 | K7: =SKEW(F2:F2482) -> -0.01636419377 | M7: 01013 | N7: Butler | O7: Alabama
A8: 01015 | B8: 9.391665765 | C8: 1.569076827 | D8: 2.239822675 | E8: 5.758720143 | F8: 5.653011991 | H8: Kurtosis | I8: =KURT(B2:B2482) -> 6.371084724 | J8: =KURT(E2:E2482) -> -0.06822903471 | K8: =KURT(F2:F2482) -> -0.06822903471 | M8: 01015 | N8: Calhoun | O8: Alabama
A9: 01017 | B9: 1.488934263 | C9: 1.995152335 | D9: 0.3980606043 | E9: 3.093593561 | F9: 3.036806974 | M9: 01017 | N9: Chambers | O9: Alabama
A10: 01019 | B10: 10.14635688 | C10: 1.949805279 | D10: 2.317114713 | E10: 5.902446456 | F10: 5.794100037 | M10: 01019 | N10: Cherokee | O10: Alabama
A11: 01021 | B11: 8.76853595 | C11: 1.271206884 | D11: 2.171169854 | E11: 5.633570283 | F11: 5.530159405 | M11: 01021 | N11: Chilton | O11: Alabama
A12: 01023 | B12: 0.7401399003 | C12: 4.502242144 | D12: -0.3009160562 | E12: 2.384243419 | F12: 2.340477797 | M12: 01023 | N12: Choctaw | O12: Alabama
A13: 01025 | B13: 1.388918473 | C13: 2.217907123 | D13: 0.3285253675 | E13: 3.016828221 | F13: 2.961450754 | M13: 01025 | N13: Clarke | O13: Alabama
A14: 01027 | B14: 4.94177882 | C14: 0.02844414155 | D14: 1.597725351 | E14: 4.674746085 | F14: 4.588935566 | M14: 01027 | N14: Clay | O14: Alabama
A15: 01029 | B15: 3.368341784 | C15: 0.1549770845 | D15: 1.214420571 | E15: 4.112420885 | F15: 4.036932512 | M15: 01029 | N15: Cleburne | O15: Alabama
A16: 01031 | B16: 1.235784874 | C16: 2.608233659 | D16: 0.2117062937 | E16: 2.891089494 | F16: 2.838020111 | M16: 01031 | N16: Coffee | O16: Alabama
A17: 01033 | B17: 4.287987787 | C17: 0.002153091258 | D17: 1.455817576 | E17: 4.45969076 | F17: 4.377827837 | M17: 01033 | N17: Colbert | O17: Alabama
A18: 01035 | B18: 4.651382554 | C18: 0.005754628553 | D18: 1.537164499 | E18: 4.581951443 | F18: 4.497844279 | M18: 01035 | N18: Conecuh | O18: Alabama
A19: 01037 | B19: 5.328036529 | C19: 0.08186461086 | D19: 1.672982789 | E19: 4.792212099 | F19: 4.704245351 | M19: 01037 | N19: Coosa | O19: Alabama
A20: 01039 | B20: 0.1338426196 | C20: 11.43505684 | D20: -2.01109065 | E20: 1.124516087 | F20: 1.103874258 | M20: 01039 | N20: Covington | O20: Alabama
A21: 01041 | B21: 1.278381134 | C21: 2.493044453 | D21: 0.2455945383 | E21: 2.927154414 | F21: 2.873423016 | M21: 01041 | N21: Crenshaw | O21: Alabama
A22: 01047 | B22: 2.220741363 | C22: 0.8870047989 | D22: 0.7978410876 | E22: 3.564282853 | F22: 3.498856205 | M22: 01047 | N22: Dallas | O22: Alabama
A23: 01049 | B23: 5.354774046 | C23: 0.08644706896 | D23: 1.677988508 | E23: 4.800110999 | F23: 4.711999257 | M23: 01049 | N23: DeKalb | O23: Alabama
A24: 01051 | B24: 13.87223994 | C24: 4.039524839 | D24: 2.629889717 | E24: 6.515949095 | F24: 6.396341106 | M24: 01051 | N24: Elmore | O24: Alabama
A25: 01053 | B25: 6.858777239 | C25: 0.4877206835 | D25: 1.925529181 | E25: 5.204462194 | F25: 5.108928105 | M25: 01053 | N25: Escambia | O25: Alabama
A26: 01055 | B26: 0.774618709 | C26: 4.324891565 | D26: -0.2553843591 | E26: 2.426454811 | F26: 2.381914349 | M26: 01055 | N26: Etowah | O26: Alabama
A27: 01057 | B27: 1.895882054 | C27: 1.286329419 | D27: 0.639684194 | E27: 3.37192754 | F27: 3.310031803 | M27: 01057 | N27: Fayette | O27: Alabama
A28: 01059 | B28: 4.33299285 | C28: 0.0009523544067 | D28: 1.466258493 | E28: 4.475231935 | F28: 4.393083734 | M28: 01059 | N28: Franklin | O28: Alabama
A29: 01063 | B29: 0.1074933199 | C29: 12.28270936 | D29: -2.230326574 | E29: 1.001422524 | F29: 0.9830402235 | M29: 01063 | N29: Greene | O29: Alabama
A30: 01065 | B30: 16.01572761 | C30: 5.334625265 | D30: 2.773571215 | E30: 6.815772946 | F30: 6.690661334 | M30: 01065 | N30: Hale | O30: Alabama
A31: 01071 | B31: 3.085337527 | C31: 0.2645765408 | D31: 1.12666106 | E31: 3.991722132 | F31: 3.918449329 | M31: 01071 | N31: Jackson | O31: Alabama
A32: 01073 | B32: 1.082575403 | C32: 3.072037473 | D32: 0.07934283482 | E32: 2.753369301 | F32: 2.702827935 | M32: 01073 | N32: Jefferson | O32: Alabama
A33: 01075 | B33: 3.269309136 | C33: 0.189257946 | D33: 1.184578689 | E33: 4.071054308 | F33: 3.996325268 | M33: 01075 | N33: Lamar | O33: Alabama
A34: 01077 | B34: 2.468563248 | C34: 0.6535694166 | D34: 0.9036363006 | E34: 3.697655773 | F34: 3.629780906 | M34: 01077 | N34: Lauderdale | O34: Alabama
A35: 01079 | B35: 3.026263964 | C35: 0.2922191124 | D35: 1.107328844 | E35: 3.965519227 | F35: 3.892727409 | M35: 01079 | N35: Lawrence | O35: Alabama
A36: 01083 | B36: 8.071759989 | C36: 0.9596568218 | D36: 2.088371549 | E36: 5.485712929 | F36: 5.385016149 | M36: 01083 | N36: Limestone | O36: Alabama
A37: 01085 | B37: 6.668354535 | C37: 0.4237912583 | D37: 1.897373133 | E37: 5.157084693 | F37: 5.062420274 | M37: 01085 | N37: Lowndes | O37: Alabama
A38: 01087 | B38: 3.67187077 | C38: 0.07407196584 | D38: 1.300701279 | E38: 4.233930521 | F38: 4.156211695 | M38: 01087 | N38: Macon | O38: Alabama
A39: 01089 | B39: 4.101184645 | C39: 0.01259045748 | D39: 1.41127587 | E39: 4.393884967 | F39: 4.313229987 | M39: 01089 | N39: Madison | O39: Alabama
A40: 01091 | B40: 1.207567873 | C40: 2.687613589 | D40: 0.1886083148 | E40: 2.8666979 | F40: 2.814076253 | M40: 01091 | N40: Marengo | O40: Alabama
A41: 01093 | B41: 5.44614288 | C41: 0.1029104574 | D41: 1.69490763 | E41: 4.826888773 | F41: 4.738285493 | M41: 01093 | N41: Marion | O41: Alabama
A42: 01095 | B42: 3.74791223 | C42: 0.05898712782 | D42: 1.321198946 | E42: 4.263219517 | F42: 4.184963057 | M42: 01095 | N42: Marshall | O42: Alabama
A43: 01097 | B43: 2.809108702 | C43: 0.4098810027 | D43: 1.032867245 | E43: 3.865872679 | F43: 3.794909992 | M43: 01097 | N43: Mobile | O43: Alabama
A44: 01099 | B44: 5.222150271 | C44: 0.06479686604 | D44: 1.652909246 | E44: 4.76064446 | F44: 4.673257174 | M44: 01099 | N44: Monroe | O44: Alabama
A45: 01101 | B45: 3.011090357 | C45: 0.2996067212 | D45: 1.102302258 | E45: 3.958728748 | F45: 3.886061577 | M45: 01101 | N45: Montgomery | O45: Alabama
A46: 01103 | B46: 0.3630112447 | C46: 7.390190344 | D46: -1.013321468 | E46: 1.787601722 | F46: 1.754788168 | M46: 01103 | N46: Morgan | O46: Alabama
A47: 01105 | B47: 1.04489569 | C47: 3.199620088 | D47: 0.04391706187 | E47: 2.717343985 | F47: 2.667463906 | M47: 01105 | N47: Perry | O47: Alabama
A48: 01107 | B48: 0.3603804498 | C48: 7.420202971 | D48: -1.020595 | E48: 1.782087224 | F48: 1.749374895 | M48: 01107 | N48: Pickens | O48: Alabama
A49: 01109 | B49: 2.624239118 | C49: 0.5322726425 | D49: 0.9647909944 | E49: 3.776521998 | F49: 3.707199449 | M49: 01109 | N49: Pike | O49: Alabama
A50: 01111 | B50: 7.640812019 | C50: 0.7805029324 | D50: 2.033503883 | E50: 5.389552945 | F50: 5.290621296 | M50: 01111 | N50: Randolph | O50: Alabama
A51: 01115 | B51: 7.163707264 | C51: 0.5964186441 | D51: 1.969027621 | E51: 5.278373629 | F51: 5.181482808 | M51: 01115 | N51: St. Clair | O51: Alabama
A52: 01117 | B52: 10.91956474 | C52: 2.358531205 | D52: 2.39055611 | E52: 6.041843198 | F52: 5.930937986 | M52: 01117 | N52: Shelby | O52: Alabama
A53: 01119 | B53: 7.233823214 | C53: 0.6224449721 | D53: 1.978767695 | E53: 5.295043993 | F53: 5.197847168 | M53: 01119 | N53: Sumter | O53: Alabama
A54: 01121 | B54: 1.967776011 | C54: 1.187313461 | D54: 0.6769039764 | E54: 3.416453032 | F54: 3.353739977 | M54: 01121 | N54: Talladega | O54: Alabama
A55: 01123 | B55: 0.8088668422 | C55: 4.157688854 | D55: -0.212120971 | E55: 2.467051014 | F55: 2.421765361 | M55: 01123 | N55: Tallapoosa | O55: Alabama
A56: 01125 | B56: 1.775588767 | C56: 1.467720109 | D56: 0.5741320679 | E56: 3.294597186 | F56: 3.234120939 | M56: 01125 | N56: Tuscaloosa | O56: Alabama
A57: 01127 | B57: 4.179269995 | C57: 0.007130081737 | D57: 1.430136589 | E57: 4.421652364 | F57: 4.34048768 | M57: 01127 | N57: Walker | O57: Alabama
A58: 01129 | B58: 6.629714671 | C58: 0.4112131119 | D58: 1.891561767 | E58: 5.14735118 | F58: 5.052865432 | M58: 01129 | N58: Washington | O58: Alabama
A59: 01131 | B59: 3.959268129 | C59: 0.0267892741 | D59: 1.376059192 | E59: 4.342417882 | F59: 4.262707641 | M59: 01131 | N59: Wilcox | O59: Alabama
A60: 01133 | B60: 0.4127939316 | C60: 6.860381801 | D60: -0.8848067656 | E60: 1.886859119 | F60: 1.852223578 | M60: 01133 | N60: Winston | O60: Alabama
A61: 04001 | B61: 8.476678264 | C61: 1.137689284 | D61: 2.137318659 | E61: 5.572717359 | F61: 5.470423509 | M61: 04001 | N61: Apache | O61: Arizona
A62: 04003 | B62: 2.610002712 | C62: 0.5426365489 | D62: 0.9593512606 | E62: 3.769453492 | F62: 3.700260694 | M62: 04003 | N62: Cochise | O62: Arizona
A63: 04005 | B63: 2.410032462 | C63: 0.7039634159 | D63: 0.8796402171 | E63: 3.667066898 | F63: 3.599753527 | M63: 04005 | N63: Coconino | O63: Arizona
A64: 04007 | B64: 11.16310812 | C64: 2.490609114 | D64: 2.412614424 | E64: 6.084258552 | F64: 5.972574756 | M64: 04007 | N64: Gila | O64: Arizona
A65: 04013 | B65: 13.52326198 | C65: 3.833387834 | D65: 2.604411313 | E65: 6.463996114 | F65: 6.345341783 | M65: 04013 | N65: Maricopa | O65: Arizona
A66: 04015 | B66: 19.72425581 | C66: =(E66-J$6)^2 -> 7.648880252 | D66: =LN(B66) -> 2.981849138 | E66: =((B66^G$2)-G$2)/G$2 -> 7.271753082 | F66: 7.138271412 | M66: 04015 | N66: Mohave | O66: Arizona
A67: 04017 | B67: 5.6207831 | C67: 0.1377022933 | D67: 1.726470996 | E67: 4.877174771 | F67: =E67*($K$6/$J$6) -> 4.787648432 | M67: 04017 | N67: Navajo | O67: Arizona
A68: 04019 | B68: 3.444514449 | C68: 0.131371242 | D68: 1.236782951 | E68: 4.143640465 | F68: 4.06757902 | M68: 04019 | N68: Pima | O68: Arizona
A69: 04021 | B69: 22.64495248 | C69: 9.502089371 | D69: 3.119936978 | E69: 7.588638098 | F69: 7.449339628 | M69: 04021 | N69: Pinal | O69: Arizona
A70: 04023 | B70: 3.639872414 | C70: 0.08100771973 | D70: 1.29194863 | E70: 4.221473624 | F70: 4.143983458 | M70: 04023 | N70: Santa Cruz | O70: Arizona
A71: 04025 | B71: 16.29345411 | C71: 5.505349891 | D71: 2.790763439 | E71: 6.852440378 | F71: 6.726655691 | M71: 04025 | N71: Yavapai | O71: Arizona
A72: 05001 | B72: 1.189679656 | C72: 2.739266577 | D72: 0.1736840746 | E72: 2.851019192 | F72: 2.798685347 | M72: 05001 | N72: Arkansas | O72: Arkansas
A73: 05003 | B73: 0.5376455027 | C73: 5.778719538 | D73: -0.6205558529 | E73: 2.102195435 | F73: 2.063607139 | M73: 05003 | N73: Ashley | O73: Arkansas
A74: 05005 | B74: 0.5184794394 | C74: 5.926314928 | D74: -0.656854906 | E74: 2.071689799 | F74: 2.033661471 | M74: 05005 | N74: Baxter | O74: Arkansas
A75: 05007 | B75: 22.07155841 | C75: 9.137237027 | D75: 3.09428983 | E75: 7.528878477 | F75: 7.390676965 | M75: 05007 | N75: Benton | O75: Arkansas
A76: 05009 | B76: 3.531288455 | C76: 0.1072519568 | D76: 1.261662806 | E76: 4.178598729 | F76: 4.101895584 | M76: 05009 | N76: Boone | O76: Arkansas
A77: 05011 | B77: 9.441434385 | C77: 1.593552655 | D77: 2.245107916 | E77: 5.76845213 | F77: 5.662565336 | M77: 05011 | N77: Bradley | O77: Arkansas
A78: 05013 | B78: 3.536532537 | C78: 0.1058857493 | D78: 1.263146738 | E78: 4.180691269 | F78: 4.103949713 | M78: 05013 | N78: Calhoun | O78: Arkansas
A79: 05015 | B79: 14.56786882 | C79: 4.454815583 | D79: 2.678818338 | E79: 6.61673558 | F79: 6.495277535 | M79: 05015 | N79: Carroll | O79: Arkansas
A80: 05019 | B80: 9.032308269 | C80: 1.395280059 | D80: 2.200807957 | E80: 5.687311908 | F80: 5.582914539 | M80: 05019 | N80: Clark | O80: Arkansas
A81: 05023 | B81: 1.603197027 | C81: 1.766935897 | D81: 0.4719997777 | E81: 3.176830764 | F81: 3.11851626 | M81: 05023 | N81: Cleburne | O81: Arkansas
A82: 05025 | B82: 1.912331383 | C82: 1.263084194 | D82: 0.6483231171 | E82: 3.38222199 | F82: 3.320137285 | M82: 05025 | N82: Cleveland | O82: Arkansas
A83: 05029 | B83: 0.2352145763 | C83: 9.17544869 | D83: -1.447257091 | E83: 1.476991865 | F83: 1.449879924 | M83: 05029 | N83: Conway | O83: Arkansas
A84: 05031 | B84: 5.826157422 | C84: 0.183855554 | D84: 1.762357679 | E84: 4.934875983 | F84: 4.84429047 | M84: 05031 | N84: Craighead | O84: Arkansas
A85: 05033 | B85: 5.206507225 | C85: 0.06242465599 | D85: 1.649909233 | E85: 4.755941441 | F85: 4.668640484 | M85: 05033 | N85: Crawford | O85: Arkansas
A86: 05035 | B86: 0.1396785817 | C86: 11.26774968 | D86: -1.968411341 | E86: 1.149345285 | F86: 1.128247687 | M86: 05035 | N86: Crittenden | O86: Arkansas
A87: 05037 | B87: 2.593562524 | C87: 0.5547812392 | D87: 0.9530324227 | E87: 3.761255791 | F87: 3.692213471 | M87: 05037 | N87: Cross | O87: Arkansas
A88: 05039 | B88: 2.708317636 | C88: 0.4738723611 | D88: 0.9963276435 | E88: 3.817708299 | F88: 3.747629726 | M88: 05039 | N88: Dallas | O88: Arkansas
A89: 05043 | B89: 1.008038542 | C89: 3.330310029 | D89: 0.008006405511 | E89: 2.68117847 | F89: 2.631962253 | M89: 05043 | N89: Drew | O89: Arkansas
A90: 05045 | B90: 14.75372237 | C90: 4.566667401 | D90: 2.691495415 | E90: 6.643068403 | F90: 6.521126988 | M90: 05045 | N90: Faulkner | O90: Arkansas
A91: 05047 | B91: 6.082549634 | C91: 0.248778718 | D91: 1.805423956 | E91: 5.004869398 | F91: 4.912999072 | M91: 05047 | N91: Franklin | O91: Arkansas
A92: 05049 | B92: 3.7277859 | C92: 0.06279151226 | D92: 1.315814465 | E92: 4.255509829 | F92: 4.177394888 | M92: 05049 | N92: Fulton | O92: Arkansas
A93: 05053 | B93: 2.774572863 | C93: 0.4310961892 | D93: 1.020496812 | E93: 3.849513018 | F93: 3.778850632 | M93: 05053 | N93: Grant | O93: Arkansas
A94: 05055 | B94: 5.298305619 | C94: 0.07689681993 | D94: 1.667387075 | E94: 4.783394933 | F94: 4.695590035 | M94: 05055 | N94: Greene | O94: Arkansas
A95: 05057 | B95: 3.226978754 | C95: 0.2052072383 | D95: 1.171546329 | E95: 4.053094119 | F95: 3.97869476 | M95: 05057 | N95: Hempstead | O95: Arkansas
A96: 05059 | B96: 6.705698945 | C96: 0.4360763517 | D96: 1.902957754 | E96: 5.166452949 | F96: 5.071616565 | M96: 05059 | N96: Hot Spring | O96: Arkansas
A97: 05061 | B97: 2.890279139 | C97: 0.3628102772 | D97: 1.061353085 | E97: 3.90375483 | F97: 3.832096771 | M97: 05061 | N97: Howard | O97: Arkansas
A98: 05063 | B98: 3.28373798 | C98: 0.1840020436 | D98: 1.188982402 | E98: 4.077137581 | F98: 4.002296875 | M98: 05063 | N98: Independence | O98: Arkansas
A99: 05065 | B99: 0.1872454821 | C99: 10.10112298 | D99: -1.675334785 | E99: 1.327865786 | F99: 1.303491232 | M99: 05065 | N99: Izard | O99: Arkansas
A100: 05067 | B100: 0.3215147137 | C100: 7.891095241 | D100: -1.134711971 | E100: 1.696982843 | F100: 1.665832706 | M100: 05067 | N100: Jackson | O100: Arkansas
A101: 05069 | B101: 1.619381349 | C101: 1.736660266 | D101: 0.4820441931 | E101: 3.18826811 | F101: 3.12974366 | M101: 05069 | N101: Jefferson | O101: Arkansas
A102: 05071 | B102: 10.01991593 | C102: 1.884661747 | D102: 2.304574706 | E102: 5.878922007 | F102: 5.771007406 | M102: 05071 | N102: Johnson | O102: Arkansas
A103: 05075 | B103: 1.40503697 | C103: 2.180425338 | D103: 0.3400636157 | E103: 3.029465838 | F103: 2.973856393 | M103: 05075 | N103: Lawrence | O103: Arkansas
A104: 05077 | B104: 13.86296119 | C104: 4.034023865 | D104: 2.629220621 | E104: 6.51458013 | F104: 6.394997269 | M104: 05077 | N104: Lee | O104: Arkansas
A105: 05079 | B105: 2.883363126 | C105: 0.366672203 | D105: 1.058957365 | E105: 3.900557533 | F105: 3.828958164 | M105: 05079 | N105: Lincoln | O105: Arkansas
A106: 05081 | B106: 12.89290924 | C106: 3.465311334 | D106: 2.556677489 | E106: 6.367626847 | F106: 6.250741489 | M106: 05081 | N106: Little River | O106: Arkansas
A107: 05085 | B107: 13.79194668 | C107: 3.991958049 | D107: 2.624084848 | E107: 6.504080676 | F107: 6.384690545 | M107: 05085 | N107: Lonoke | O107: Arkansas
A108: 05087 | B108: 10.5746654 | C108: 2.174119255 | D108: 2.358461084 | E108: 5.980581664 | F108: 5.870800981 | M108: 05087 | N108: Madison | O108: Arkansas
A109: 05089 | B109: 10.99581804 | C109: 2.399725187 | D109: 2.397515023 | E109: 6.055196815 | F109: 5.944046482 | M109: 05089 | N109: Marion | O109: Arkansas
A110: 05091 | B110: 1.748876317 | C110: 1.510887464 | D110: 0.5589734772 | E110: 3.276910551 | F110: 3.216758964 | M110: 05091 | N110: Miller | O110: Arkansas
A111: 05093 | B111: 7.28456673 | C111: 0.6415098542 | D111: 1.985757964 | E111: 5.307035278 | F111: 5.209618338 | M111: 05093 | N111: Mississippi | O111: Arkansas
A112: 05095 | B112: 5.608009375 | C112: 0.1350146332 | D112: 1.724195821 | E112: 4.873535549 | F112: 4.784076012 | M112: 05095 | N112: Monroe | O112: Arkansas
A113: 05099 | B113: 1.534240448 | C113: 1.90152017 | D113: 0.4280354361 | E113: 3.127135986 | F113: 3.069733689 | M113: 05099 | N113: Nevada | O113: Arkansas
A114: 05101 | B114: 0.3687891294 | C114: 7.325036952 | D114: -0.9975302634 | E114: 1.799611628 | F114: 1.766577618 | M114: 05101 | N114: Newton | O114: Arkansas
A115: 05103 | B115: 5.855728369 | C115: 0.1909423196 | D115: 1.76742039 | E115: 4.943061647 | F115: 4.852325876 | M115: 05103 | N115: Ouachita | O115: Arkansas
A116: 05105 | B116: 10.78453753 | C116: 2.285954646 | D116: 2.378113398 | E116: 6.018029557 | F116: 5.907561472 | M116: 05105 | N116: Perry | O116: Arkansas
A117: 05107 | B117: 7.193702172 | C117: 0.6075069769 | D117: 1.973205945 | E117: 5.285519514 | F117: 5.188497522 | M117: 05107 | N117: Phillips | O117: Arkansas
A118: 05109 | B118: 4.331460311 | C118: 0.0009851764427 | D118: 1.46590474 | E118: 4.474704654 | F118: 4.392566133 | M118: 05109 | N118: Pike | O118: Arkansas
A119: 05111 | B119: 7.016723244 | C119: 0.5430897072 | D119: 1.948296335 | E119: 5.243038379 | F119: 5.146796178 | M119: 05111 | N119: Poinsett | O119: Arkansas
A120: 05113 | B120: 4.22217494 | C120: 0.004808464743 | D120: 1.440350384 | E120: 4.43674908 | F120: 4.355307278 | M120: 05113 | N120: Polk | O120: Arkansas
A121: 05115 | B121: 0.6479070135 | C121: 5.027807125 | D121: -0.4340080907 | E121: 2.263814956 | F121: 2.222259943 | M121: 05115 | N121: Pope | O121: Arkansas
A122: 05117 | B122: 3.191736713 | C122: 0.2191007746 | D122: 1.160565193 | E122: 4.038010158 | F122: 3.963887683 | M122: 05117 | N122: Prairie | O122: Arkansas
A123: 05123 | B123: 5.883664525 | C123: 0.1977358687 | D123: 1.772179786 | E123: 4.95076719 | F123: 4.859889974 | M123: 05123 | N123: St. Francis | O123: Arkansas
A124: 05129 | B124: 4.439098667 | C124: 2.831042752e-05 | D124: 1.490451353 | E124: 4.511412929 | F124: 4.428600584 | M124: 05129 | N124: Searcy | O124: Arkansas
A125: 05133 | B125: 5.608649486 | C125: 0.1351487911 | D125: 1.724309957 | E125: 4.87371806 | F125: 4.784255173 | M125: 05133 | N125: Sevier | O125: Arkansas
A126: 05135 | B126: 1.354852938 | C126: 2.299251113 | D126: 0.3036929154 | E126: 2.989764007 | F126: 2.934883336 | M126: 05135 | N126: Sharp | O126: Arkansas
A127: 05137 | B127: 2.565686004 | C127: 0.5758131407 | D127: 0.9422258908 | E127: 3.747268651 | F127: 3.678483081 | M127: 05137 | N127: Stone | O127: Arkansas
A128: 05139 | B128: 3.656205201 | C128: 0.07742323806 | D128: 1.296425779 | E128: 4.227841859 | F128: 4.150234798 | M128: 05139 | N128: Union | O128: Arkansas
A129: 05141 | B129: 3.273543173 | C129: 0.1877062157 | D129: 1.185872937 | E129: 4.072841421 | F129: 3.998079577 | M129: 05141 | N129: Van Buren | O129: Arkansas
A130: 05143 | B130: 17.03614714 | C130: =(E130-J$6)^2 -> 5.964430353 | D130: =LN(B130) -> 2.835337389 | E130: =((B130^G$2)-G$2)/G$2 -> 6.948310501 | F130: 6.820766004 | M130: 05143 | N130: Washington | O130: Arkansas
A131: 05145 | B131: 7.348218227 | C131: 0.6656912531 | D131: 1.994457866 | E131: 5.321991221 | F131: =E131*($K$6/$J$6) -> 5.224299747 | M131: 05145 | N131: White | O131: Arkansas
A132: 05147 | B132: 0.1803385412 | C132: 10.25231847 | D132: -1.71291941 | E132: 1.304167992 | F132: 1.280228439 | M132: 05147 | N132: Woodruff | O132: Arkansas
A133: 05149 | B133: 7.399232159 | C133: 0.6852821024 | D133: 2.001376233 | E133: 5.33390985 | F133: 5.235999595 | M133: 05149 | N133: Yell | O133: Arkansas
A134: 06001 | B134: 1.262254489 | C134: 2.53601584 | D134: 0.2328993991 | E134: 2.913604862 | F134: 2.860122183 | M134: 06001 | N134: Alameda | O134: California
A135: 06003 | B135: 16.26511676 | C135: 5.487905191 | D135: 2.789022739 | E135: 6.848720014 | F135: 6.723003619 | M135: 06003 | N135: Alpine | O135: California
A136: 06005 | B136: 9.540527328 | C136: 1.642566285 | D136: 2.255548759 | E136: 5.787718596 | F136: 5.681478143 | M136: 06005 | N136: Amador | O136: California
A137: 06007 | B137: 8.214527612 | C137: 1.02141803 | D137: 2.105904247 | E137: 5.516744455 | F137: 5.415478054 | M137: 06007 | N137: Butte | O137: California
A138: 06009 | B138: 0.07879975256 | C138: 13.44622877 | D138: -2.540845422 | E138: 0.8391821985 | F138: 0.823778012 | M138: 06009 | N138: Calaveras | O138: California
A139: 06011 | B139: 3.226062788 | C139: 0.2055612019 | D139: 1.171262443 | E139: 4.052703598 | F139: 3.978311407 | M139: 06011 | N139: Colusa | O139: California
A140: 06013 | B140: 2.625658935 | C140: 0.5312467484 | D140: 0.9653318874 | E140: 3.777225419 | F140: 3.707889957 | M140: 06013 | N140: Contra Costa | O140: California
A141: 06015 | B141: 0.6653947822 | C141: 4.921857524 | D141: -0.407374757 | E141: 2.287566195 | F141: 2.245575199 | M141: 06015 | N141: Del Norte | O141: California
A142: 06017 | B142: 4.787381469 | C142: 0.01435843561 | D142: 1.565983596 | E142: 4.625918865 | F142: 4.541004627 | M142: 06017 | N142: El Dorado | O142: California
A143: 06021 | B143: 7.160424212 | C143: 0.5952091479 | D143: 1.968569227 | E143: 5.277590164 | F143: 5.180713725 | M143: 06021 | N143: Glenn | O143: California
A144: 06023 | B144: 2.260470227 | C144: 0.8458894938 | D144: 0.8155728567 | E144: 3.586369666 | F144: 3.520537588 | M144: 06023 | N144: Humboldt | O144: California
A145: 06027 | B145: 9.902900202 | C145: 1.824838091 | D145: 2.292827664 | E145: 5.856957857 | F145: 5.749446435 | M145: 06027 | N145: Inyo | O145: California
A146: 06029 | B146: 2.222928692 | C146: 0.8847017478 | D146: 0.7988255571 | E146: 3.565506321 | F146: 3.500057216 | M146: 06029 | N146: Kern | O146: California
A147: 06033 | B147: 11.4239773 | C147: 2.633670175 | D147: 2.435714419 | E147: 6.128950818 | F147: 6.016446642 | M147: 06033 | N147: Lake | O147: California
A148: 06035 | B148: 3.246905713 | C148: 0.1975998986 | D148: 1.177702455 | E148: 4.061570073 | F148: 3.987015128 | M148: 06035 | N148: Lassen | O148: California
A149: 06037 | B149: 2.850375854 | C149: 0.3854696746 | D149: 1.047450864 | E149: 3.885230133 | F149: 3.813912117 | M149: 06037 | N149: Los Angeles | O149: California
A150: 06039 | B150: 10.84676465 | C150: 2.319342178 | D150: 2.383866846 | E150: 6.02903084 | F150: 5.918360814 | M150: 06039 | N150: Madera | O150: California
A151: 06041 | B151: 2.478311455 | C151: 0.6454407837 | D151: 0.9075774636 | E151: 3.702698882 | F151: 3.634731443 | M151: 06041 | N151: Marin | O151: California
A152: 06043 | B152: 5.877881834 | C152: 0.1963218198 | D152: 1.771196465 | E152: 4.949174357 | F152: 4.85832638 | M152: 06043 | N152: Mariposa | O152: California
A153: 06045 | B153: 9.339028864 | C153: 1.543294829 | D153: 2.234202271 | E153: 5.748386355 | F153: 5.642867892 | M153: 06045 | N153: Mendocino | O153: California
A154: 06047 | B154: 1.304512718 | C154: 2.425008305 | D154: 0.2658295748 | E154: 2.948848358 | F154: 2.894718742 | M154: 06047 | N154: Merced | O154: California
A155: 06049 | B155: 14.16331188 | C155: 4.212619268 | D155: 2.650654951 | E155: 6.558558805 | F155: 6.438168664 | M155: 06049 | N155: Modoc | O155: California
A156: 06051 | B156: 1.187261478 | C156: 2.746330436 | D156: 0.1716493765 | E156: 2.848886564 | F156: 2.796591866 | M156: 06051 | N156: Mono | O156: California
A157: 06053 | B157: 1.612903144 | C157: 1.748720965 | D157: 0.4780357503 | E157: 3.183700037 | F157: 3.12525944 | M157: 06053 | N157: Monterey | O157: California
A158: 06055 | B158: 1.572788032 | C158: 1.825148354 | D158: 0.4528498609 | E158: 3.155111659 | F158: 3.097195835 | M158: 06055 | N158: Napa | O158: California
A159: 06057 | B159: 11.34964237 | C159: 2.592743591 | D159: 2.429186234 | E159: 6.116292035 | F159: 6.004020226 | M159: 06057 | N159: Nevada | O159: California
A160: 06059 | B160: 1.148284843 | C160: 2.862945361 | D160: 0.1382693883 | E160: 2.814068132 | F160: 2.762412567 | M160: 06059 | N160: Orange | O160: California
A161: 06061 | B161: 12.65625353 | C161: 3.328686048 | D161: 2.538151443 | E161: 6.330560878 | F161: 6.214355909 | M161: 06061 | N161: Placer | O161: California
A162: 06063 | B162: 13.0575547 | C162: 3.560886127 | D162: 2.569366871 | E162: 6.39312321 | F162: 6.275769836 | M162: 06063 | N162: Plumas | O162: California
A163: 06065 | B163: 2.957312332 | C163: 0.3267637449 | D163: 1.08428086 | E163: 3.934459649 | F163: 3.862237966 | M163: 06065 | N163: Riverside | O163: California
A164: 06067 | B164: 3.935536769 | C164: 0.0297256015 | D164: 1.370047281 | E164: 4.333681034 | F164: 4.254131168 | M164: 06067 | N164: Sacramento | O164: California
A165: 06069 | B165: 14.87368927 | C165: 4.639052127 | D165: 2.699593831 | E165: 6.659938067 | F165: 6.537686989 | M165: 06069 | N165: San Benito | O165: California
A166: 06071 | B166: 3.03022549 | C166: 0.2903099338 | D166: 1.108637036 | E166: 3.967288005 | F166: 3.894463719 | M166: 06071 | N166: San Bernardi | O166: California
A167: 06075 | B167: 6.259494447 | C167: 0.2979404288 | D167: 1.834099423 | E167: 5.051931372 | F167: 4.959197168 | M167: 06075 | N167: San Francisco | O167: California
A168: 06077 | B168: 1.246681507 | C168: 2.578246087 | D168: 0.2204852264 | E168: 2.900400397 | F168: 2.8471601 | M168: 06077 | N168: San Joaquin | O168: California
A169: 06079 | B169: 9.094098768 | C169: 1.424784997 | D169: 2.207625716 | E169: 5.699735755 | F169: 5.595110332 | M169: 06079 | N169: San Luis Obispo | O169: California
A170: 06081 | B170: 1.217174307 | C170: 2.660304742 | D170: 0.1965320307 | E170: 2.87504811 | F170: 2.822273185 | M170: 06081 | N170: San Mateo | O170: California
A171: 06083 | B171: 5.451640935 | C171: 0.1039401297 | D171: 1.695916652 | E171: 4.828489647 | F171: 4.739856981 | M171: 06083 | N171: Santa Barbara | O171: California
A172: 06085 | B172: 1.555971595 | C172: 1.858103973 | D172: 0.4421001705 | E172: 3.1429693 | F172: 3.085276363 | M172: 06085 | N172: Santa Clara | O172: California
A173: 06087 | B173: 9.332663837 | C173: 1.540184535 | D173: 2.233520487 | E173: 5.747133889 | F173: 5.641638416 | M173: 06087 | N173: Santa Cruz | O173: California
A174: 06089 | B174: 9.983302313 | C174: 1.865894588 | D174: 2.300913929 | E174: 5.872069696 | F174: 5.764280878 | M174: 06089 | N174: Shasta | O174: California
A175: 06091 | B175: 6.437236315 | C175: 0.3506395978 | D175: 1.862099304 | E175: 5.098240465 | F175: 5.004656203 | M175: 06091 | N175: Sierra | O175: California
A176: 06093 | B176: 9.889822541 | C176: 1.818180559 | D176: 2.291506202 | E176: 5.854491433 | F176: 5.747025285 | M176: 06093 | N176: Siskiyou | O176: California
A177: 06095 | B177: 5.874721711 | C177: 0.1955507888 | D177: 1.77065869 | E177: 4.948303424 | F177: 4.857471434 | M177: 06095 | N177: Solano | O177: California
A178: 06097 | B178: 3.382937566 | C178: 0.1502722596 | D178: 1.218744435 | E178: 4.118442514 | F178: 4.042843607 | M178: 06097 | N178: Sonoma | O178: California
A179: 06099 | B179: 1.335264479 | C179: 2.34737838 | D179: 0.2891293838 | E179: 2.97397652 | F179: 2.919385647 | M179: 06099 | N179: Stanislaus | O179: California
A180: 06101 | B180: 4.739227642 | C180: 0.01089186804 | D180: 1.555874178 | E180: 4.610456288 | F180: 4.525825883 | M180: 06101 | N180: Sutter | O180: California
A181: 06103 | B181: 5.554384717 | C181: 0.1239741335 | D181: 1.714587655 | E181: 4.858191782 | F181: 4.769013898 | M181: 06103 | N181: Tehama | O181: California
A182: 06105 | B182: 20.09246237 | C182: 7.881590087 | D182: 3.000344738 | E182: 7.313509153 | F182: 7.179261001 | M182: 06105 | N182: Trinity | O182: California
A183: 06107 | B183: 0.6999705953 | C183: 4.721372645 | D183: -0.3567169515 | E183: 2.333220194 | F183: 2.290391165 | M183: 06107 | N183: Tulare | O183: California
A184: 06109 | B184: 11.30629594 | C184: 2.568936926 | D184: 2.425359733 | E184: 6.108882531 | F184: 5.996746732 | M184: 06109 | N184: Tuolumne | O184: California
A185: 06111 | B185: 7.003096832 | C185: 0.5382323337 | D185: 1.946352456 | E185: 5.239735367 | F185: 5.143553798 | M185: 06111 | N185: Ventura | O185: California
A186: 06113 | B186: 2.221473641 | C186: 0.8862332621 | D186: 0.798170778 | E186: 3.564692546 | F186: 3.499258378 | M186: 06113 | N186: Yolo | O186: California
A187: 06115 | B187: 7.937486366 | C187: 0.9026307284 | D187: 2.071596647 | E187: 5.456160977 | F187: 5.356006658 | M187: 06115 | N187: Yuba | O187: California
A188: 08007 | B188: 33.66184962 | C188: 16.49455063 | D188: 3.516365137 | E188: 8.567440551 | F188: 8.410174998 | M188: 08007 | N188: Archuleta | O188: Colorado
A189: 08009 | B189: 8.726331768 | C189: 1.25164749 | D189: 2.166345095 | E189: 5.624862701 | F189: 5.521611662 | M189: 08009 | N189: Baca | O189: Colorado
A190: 08011 | B190: 25.1380296 | C190: 11.09066778 | D190: 3.224381823 | E190: 7.836357596 | F190: 7.69251194 | M190: 08011 | N190: Bent | O190: Colorado
A191: 08013 | B191: 0.09282607606 | C191: 12.83809349 | D191: -2.377027687 | E191: 0.9230636382 | F191: 0.9061197081 | M191: 08013 | N191: Boulder | O191: Colorado
A192: 08015 | B192: 13.95928884 | C192: 4.091184088 | D192: 2.636145154 | E192: 6.528759742 | F192: 6.408916598 | M192: 08015 | N192: Chaffee | O192: Colorado
A193: 08017 | B193: 7.573777156 | C193: 0.7536853002 | D193: 2.024691907 | E193: 5.37424268 | F193: 5.275592069 | M193: 08017 | N193: Cheyenne | O193: Colorado
A194: 08019 | B194: 3.925297248 | C194: =(E194-J$6)^2 -> 0.03104387714 | D194: =LN(B194) -> 1.36744208 | E194: =((B194^G$2)-G$2)/G$2 -> 4.329899448 | F194: 4.250418998 | M194: 08019 | N194: Clear Creek | O194: Colorado
A195: 08027 | B195: 34.14434507 | C195: 16.79761848 | D195: 3.530596981 | E195: 8.604581955 | F195: =E195*($K$6/$J$6) -> 8.446634628 | M195: 08027 | N195: Custer | O195: Colorado
A196: 08029 | B196: 14.56319023 | C196: 4.452004492 | D196: 2.678497128 | E196: 6.616069543 | F196: 6.494623724 | M196: 08029 | N196: Delta | O196: Colorado
A197: 08033 | B197: 21.32838516 | C197: 8.664940089 | D197: 3.060038822 | E197: 7.449719204 | F197: 7.312970755 | M197: 08033 | N197: Dolores | O197: Colorado
A198: 08035 | B198: 52.20246861 | C198: 27.82827399 | D198: 3.955129785 | E198: 9.781343258 | F198: 9.601795078 | M198: 08035 | N198: Douglas | O198: Colorado
A199: 08037 | B199: 31.43992681 | C199: 15.09420825 | D199: 3.44807864 | E199: 8.391218717 | F199: 8.237187925 | M199: 08037 | N199: Eagle | O199: Colorado
A200: 08039 | B200: 38.10546031 | C200: 19.2705437 | D200: 3.640357587 | E200: 8.895914916 | F200: 8.732619826 | M200: 08039 | N200: Elbert | O200: Colorado
... 2282 more rows

Sheet MAPE-R
A1: Errors | B1: Original APE | C1: Sum of differences | D1: LN Original Values | E1: APE-T | F1: APE-R | G1: Step 1: Input % error (in percentage terms) data in Column A (Up to 10,000 records)
A2: 0.01 | B2: =IF(A2>0,A2*100,"") -> 1 | C2: =IF(B2<>"",(E2-H$16)^2,"") -> 7.202565414 | D2: =IF(B2<>"",LN(B2),"") -> 0 | E2: =IF(B2<>"",((B2^I$20)-I$20)/I$20,"") -> -8.288458002 | F2: =IF(E2<>"",E2*($H$17/$H$16),"") -> 42.02340073 | G2: Step 2: Should you use this? | H2: =IF(MAX(B2:B10000)/MIN(B2:B10000)>20,"Yes","No") -> Yes
A3: 0.02 | B3: =IF(A3>0,A3*100,"") -> 2 | C3: 4.09071565 | D3: =IF(B3<>"",LN(B3),"") -> 0.6931471806 | E3: -7.627250202 | F3: 38.6710039
A4: 0.03 | B4: 3 | C4: 2.768689401 | D4: 1.098612289 | E4: -7.268636354 | F4: 36.85279194
A5: 0.04 | B5: 4 | C5: 2.020175096 | D5: 1.386294361 | E5: -7.026027072 | F5: 35.62273599
A6: 0.1 | B6: 10 | C6: 0.5032974585 | D6: 2.302585093 | E6: -6.31413304 | F6: 32.01335434 | H6: =-(COUNT(B2:B10000)/2) -> -5
A7: 0.5 | B7: 50 | C7: 0.1179941391 | D7: 3.912023005 | E7: -5.261195685 | F7: 26.67484525 | H7: =LN((1/COUNT(B2:B10000))*SUM(C2:C10000)) -> 1.294945988
A8: 1 | B8: 100 | C8: 0.5330135554 | D8: 4.605170186 | E8: -4.874620661 | F8: 24.71486704 | H8: =(I20-1) -> -1.137203233
A9: 10 | B9: 1000 | C9: 3.167152754 | D9: 6.907755279 | E9: -3.825048819 | F9: 19.39342147 | H9: =SUM(D2:D10000) -> 41.62885323
A10: 100 | B10: 10000 | C10: 6.476564276 | D10: 9.210340372 | E10: -3.059788952 | F10: 15.51346912 | G10: Maximize this value: | H10: =H6*H7+H8*H9 -> -53.81519641
A11: 1000 | B11: 100000 | C11: 9.627820074 | D11: 11.51292546 | E11: -2.50182556 | F11: 12.68453288
I13: Skewtest
H14: Average | I14: =1.96*SQRT(6/COUNT(B$2:B$10000)) -> 1.518209472
G15: Original | H15: =AVERAGE(B2:B10000) -> 11117 | I15: Skew | J15: Step 3: Open solver add-in and optimize (should be set to maximize H10 by changing H24) and keep solver solution
G16: MAPE-T | H16: =AVERAGE(E2:E10000) -> -5.604698435 | I16: =SKEW(B$2:B$10000) -> 3.107123776 | J16: Step 4: Are your original data statistically significantly skewed? If I16 is red then yes (95%) if green then no.
G17: MAPE-R | H17: =((I20)*(H16+1))^(1/I20) -> 28.41644227 | I17: =SKEW(E$2:E$10000) -> 0.2887166336 | J17: Step 5: Are your revised data statistically significantly skewed? If I17 is red then yes (95%) if green then no.
H18: MAPE-T | I18: =H16/100 -> -0.05604698435 | J18: Step 6: Your MAPE-T Value
H19: MAPE-R | I19: =H17/100 -> 0.2841644227 | J19: Step 7: Your MAPE-R Value
H20: Optimal Lambda | I20: -0.1372032328 | J20: Step 8: Your Optimal Lambda
C66: =IF(B66<>"",(E66-H$16)^2,"") ->  | E66: =IF(B66<>"",((B66^I$20)-I$20)/I$20,"") ->  | F66: =IF(E66<>"",E66*($H$17/$H$16),"") -> 
B67: =IF(A67>0,A67*100,"") ->  | D67: =IF(B67<>"",LN(B67),"") -> 
C130: =IF(B130<>"",(E130-H$16)^2,"") ->  | E130: =IF(B130<>"",((B130^I$20)-I$20)/I$20,"") ->  | F130: =IF(E130<>"",E130*($H$17/$H$16),"") -> 
B131: =IF(A131>0,A131*100,"") ->  | D131: =IF(B131<>"",LN(B131),"") -> 
C194: =IF(B194<>"",(E194-H$16)^2,"") ->  | E194: =IF(B194<>"",((B194^I$20)-I$20)/I$20,"") ->  | F194: =IF(E194<>"",E194*($H$17/$H$16),"") -> 
B195: =IF(A195>0,A195*100,"") ->  | D195: =IF(B195<>"",LN(B195),"") -> 
C258: =IF(B258<>"",(E258-H$16)^2,"") ->  | E258: =IF(B258<>"",((B258^I$20)-I$20)/I$20,"") ->  | F258: =IF(E258<>"",E258*($H$17/$H$16),"") -> 
B259: =IF(A259>0,A259*100,"") ->  | D259: =IF(B259<>"",LN(B259),"") -> 
C322: =IF(B322<>"",(E322-H$16)^2,"") ->  | E322: =IF(B322<>"",((B322^I$20)-I$20)/I$20,"") ->  | F322: =IF(E322<>"",E322*($H$17/$H$16),"") -> 
B323: =IF(A323>0,A323*100,"") ->  | D323: =IF(B323<>"",LN(B323),"") -> 
C386: =IF(B386<>"",(E386-H$16)^2,"") ->  | E386: =IF(B386<>"",((B386^I$20)-I$20)/I$20,"") ->  | F386: =IF(E386<>"",E386*($H$17/$H$16),"") -> 
B387: =IF(A387>0,A387*100,"") ->  | D387: =IF(B387<>"",LN(B387),"") -> 
C450: =IF(B450<>"",(E450-H$16)^2,"") ->  | E450: =IF(B450<>"",((B450^I$20)-I$20)/I$20,"") ->  | F450: =IF(E450<>"",E450*($H$17/$H$16),"") -> 
B451: =IF(A451>0,A451*100,"") ->  | D451: =IF(B451<>"",LN(B451),"") -> 
C514: =IF(B514<>"",(E514-H$16)^2,"") ->  | E514: =IF(B514<>"",((B514^I$20)-I$20)/I$20,"") ->  | F514: =IF(E514<>"",E514*($H$17/$H$16),"") -> 
B515: =IF(A515>0,A515*100,"") ->  | D515: =IF(B515<>"",LN(B515),"") -> 
C578: =IF(B578<>"",(E578-H$16)^2,"") ->  | E578: =IF(B578<>"",((B578^I$20)-I$20)/I$20,"") ->  | F578: =IF(E578<>"",E578*($H$17/$H$16),"") -> 
B579: =IF(A579>0,A579*100,"") ->  | D579: =IF(B579<>"",LN(B579),"") -> 
C642: =IF(B642<>"",(E642-H$16)^2,"") ->  | E642: =IF(B642<>"",((B642^I$20)-I$20)/I$20,"") ->  | F642: =IF(E642<>"",E642*($H$17/$H$16),"") -> 
B643: =IF(A643>0,A643*100,"") ->  | D643: =IF(B643<>"",LN(B643),"") -> 
C706: =IF(B706<>"",(E706-H$16)^2,"") ->  | E706: =IF(B706<>"",((B706^I$20)-I$20)/I$20,"") ->  | F706: =IF(E706<>"",E706*($H$17/$H$16),"") -> 
B707: =IF(A707>0,A707*100,"") ->  | D707: =IF(B707<>"",LN(B707),"") -> 
C770: =IF(B770<>"",(E770-H$16)^2,"") ->  | E770: =IF(B770<>"",((B770^I$20)-I$20)/I$20,"") ->  | F770: =IF(E770<>"",E770*($H$17/$H$16),"") -> 
B771: =IF(A771>0,A771*100,"") ->  | D771: =IF(B771<>"",LN(B771),"") -> 
C834: =IF(B834<>"",(E834-H$16)^2,"") ->  | E834: =IF(B834<>"",((B834^I$20)-I$20)/I$20,"") ->  | F834: =IF(E834<>"",E834*($H$17/$H$16),"") -> 
B835: =IF(A835>0,A835*100,"") ->  | D835: =IF(B835<>"",LN(B835),"") -> 
C898: =IF(B898<>"",(E898-H$16)^2,"") ->  | E898: =IF(B898<>"",((B898^I$20)-I$20)/I$20,"") ->  | F898: =IF(E898<>"",E898*($H$17/$H$16),"") -> 
B899: =IF(A899>0,A899*100,"") ->  | D899: =IF(B899<>"",LN(B899),"") -> 
C962: =IF(B962<>"",(E962-H$16)^2,"") ->  | E962: =IF(B962<>"",((B962^I$20)-I$20)/I$20,"") ->  | F962: =IF(E962<>"",E962*($H$17/$H$16),"") -> 
B963: =IF(A963>0,A963*100,"") ->  | D963: =IF(B963<>"",LN(B963),"") -> 
C1026: =IF(B1026<>"",(E1026-H$16)^2,"") ->  | E1026: =IF(B1026<>"",((B1026^I$20)-I$20)/I$20,"") ->  | F1026: =IF(E1026<>"",E1026*($H$17/$H$16),"") -> 
B1027: =IF(A1027>0,A1027*100,"") ->  | D1027: =IF(B1027<>"",LN(B1027),"") -> 
C1090: =IF(B1090<>"",(E1090-H$16)^2,"") ->  | E1090: =IF(B1090<>"",((B1090^I$20)-I$20)/I$20,"") ->  | F1090: =IF(E1090<>"",E1090*($H$17/$H$16),"") -> 
B1091: =IF(A1091>0,A1091*100,"") ->  | D1091: =IF(B1091<>"",LN(B1091),"") -> 
C1154: =IF(B1154<>"",(E1154-H$16)^2,"") ->  | E1154: =IF(B1154<>"",((B1154^I$20)-I$20)/I$20,"") ->  | F1154: =IF(E1154<>"",E1154*($H$17/$H$16),"") -> 
B1155: =IF(A1155>0,A1155*100,"") ->  | D1155: =IF(B1155<>"",LN(B1155),"") -> 
C1218: =IF(B1218<>"",(E1218-H$16)^2,"") ->  | E1218: =IF(B1218<>"",((B1218^I$20)-I$20)/I$20,"") ->  | F1218: =IF(E1218<>"",E1218*($H$17/$H$16),"") -> 
B1219: =IF(A1219>0,A1219*100,"") ->  | D1219: =IF(B1219<>"",LN(B1219),"") -> 
C1282: =IF(B1282<>"",(E1282-H$16)^2,"") ->  | E1282: =IF(B1282<>"",((B1282^I$20)-I$20)/I$20,"") ->  | F1282: =IF(E1282<>"",E1282*($H$17/$H$16),"") -> 
B1283: =IF(A1283>0,A1283*100,"") ->  | D1283: =IF(B1283<>"",LN(B1283),"") -> 
C1346: =IF(B1346<>"",(E1346-H$16)^2,"") ->  | E1346: =IF(B1346<>"",((B1346^I$20)-I$20)/I$20,"") ->  | F1346: =IF(E1346<>"",E1346*($H$17/$H$16),"") -> 
B1347: =IF(A1347>0,A1347*100,"") ->  | D1347: =IF(B1347<>"",LN(B1347),"") -> 
C1410: =IF(B1410<>"",(E1410-H$16)^2,"") ->  | E1410: =IF(B1410<>"",((B1410^I$20)-I$20)/I$20,"") ->  | F1410: =IF(E1410<>"",E1410*($H$17/$H$16),"") -> 
B1411: =IF(A1411>0,A1411*100,"") ->  | D1411: =IF(B1411<>"",LN(B1411),"") -> 
C1474: =IF(B1474<>"",(E1474-H$16)^2,"") ->  | E1474: =IF(B1474<>"",((B1474^I$20)-I$20)/I$20,"") ->  | F1474: =IF(E1474<>"",E1474*($H$17/$H$16),"") -> 
B1475: =IF(A1475>0,A1475*100,"") ->  | D1475: =IF(B1475<>"",LN(B1475),"") -> 
C1538: =IF(B1538<>"",(E1538-H$16)^2,"") ->  | E1538: =IF(B1538<>"",((B1538^I$20)-I$20)/I$20,"") ->  | F1538: =IF(E1538<>"",E1538*($H$17/$H$16),"") -> 
B1539: =IF(A1539>0,A1539*100,"") ->  | D1539: =IF(B1539<>"",LN(B1539),"") -> 
C1602: =IF(B1602<>"",(E1602-H$16)^2,"") ->  | E1602: =IF(B1602<>"",((B1602^I$20)-I$20)/I$20,"") ->  | F1602: =IF(E1602<>"",E1602*($H$17/$H$16),"") -> 
B1603: =IF(A1603>0,A1603*100,"") ->  | D1603: =IF(B1603<>"",LN(B1603),"") -> 
C1666: =IF(B1666<>"",(E1666-H$16)^2,"") ->  | E1666: =IF(B1666<>"",((B1666^I$20)-I$20)/I$20,"") ->  | F1666: =IF(E1666<>"",E1666*($H$17/$H$16),"") -> 
B1667: =IF(A1667>0,A1667*100,"") ->  | D1667: =IF(B1667<>"",LN(B1667),"") -> 
C1730: =IF(B1730<>"",(E1730-H$16)^2,"") ->  | E1730: =IF(B1730<>"",((B1730^I$20)-I$20)/I$20,"") ->  | F1730: =IF(E1730<>"",E1730*($H$17/$H$16),"") -> 
B1731: =IF(A1731>0,A1731*100,"") ->  | D1731: =IF(B1731<>"",LN(B1731),"") -> 
C1794: =IF(B1794<>"",(E1794-H$16)^2,"") ->  | E1794: =IF(B1794<>"",((B1794^I$20)-I$20)/I$20,"") ->  | F1794: =IF(E1794<>"",E1794*($H$17/$H$16),"") -> 
B1795: =IF(A1795>0,A1795*100,"") ->  | D1795: =IF(B1795<>"",LN(B1795),"") -> 
C1858: =IF(B1858<>"",(E1858-H$16)^2,"") ->  | E1858: =IF(B1858<>"",((B1858^I$20)-I$20)/I$20,"") ->  | F1858: =IF(E1858<>"",E1858*($H$17/$H$16),"") -> 
B1859: =IF(A1859>0,A1859*100,"") ->  | D1859: =IF(B1859<>"",LN(B1859),"") -> 
C1922: =IF(B1922<>"",(E1922-H$16)^2,"") ->  | E1922: =IF(B1922<>"",((B1922^I$20)-I$20)/I$20,"") ->  | F1922: =IF(E1922<>"",E1922*($H$17/$H$16),"") -> 
B1923: =IF(A1923>0,A1923*100,"") ->  | D1923: =IF(B1923<>"",LN(B1923),"") -> 
C1986: =IF(B1986<>"",(E1986-H$16)^2,"") ->  | E1986: =IF(B1986<>"",((B1986^I$20)-I$20)/I$20,"") ->  | F1986: =IF(E1986<>"",E1986*($H$17/$H$16),"") -> 
B1987: =IF(A1987>0,A1987*100,"") ->  | D1987: =IF(B1987<>"",LN(B1987),"") -> 
C2050: =IF(B2050<>"",(E2050-H$16)^2,"") ->  | E2050: =IF(B2050<>"",((B2050^I$20)-I$20)/I$20,"") ->  | F2050: =IF(E2050<>"",E2050*($H$17/$H$16),"") -> 
B2051: =IF(A2051>0,A2051*100,"") ->  | D2051: =IF(B2051<>"",LN(B2051),"") -> 
C2114: =IF(B2114<>"",(E2114-H$16)^2,"") ->  | E2114: =IF(B2114<>"",((B2114^I$20)-I$20)/I$20,"") ->  | F2114: =IF(E2114<>"",E2114*($H$17/$H$16),"") -> 
B2115: =IF(A2115>0,A2115*100,"") ->  | D2115: =IF(B2115<>"",LN(B2115),"") -> 
C2178: =IF(B2178<>"",(E2178-H$16)^2,"") ->  | E2178: =IF(B2178<>"",((B2178^I$20)-I$20)/I$20,"") ->  | F2178: =IF(E2178<>"",E2178*($H$17/$H$16),"") -> 
B2179: =IF(A2179>0,A2179*100,"") ->  | D2179: =IF(B2179<>"",LN(B2179),"") -> 
C2242: =IF(B2242<>"",(E2242-H$16)^2,"") ->  | E2242: =IF(B2242<>"",((B2242^I$20)-I$20)/I$20,"") ->  | F2242: =IF(E2242<>"",E2242*($H$17/$H$16),"") -> 
B2243: =IF(A2243>0,A2243*100,"") ->  | D2243: =IF(B2243<>"",LN(B2243),"") -> 
C2306: =IF(B2306<>"",(E2306-H$16)^2,"") ->  | E2306: =IF(B2306<>"",((B2306^I$20)-I$20)/I$20,"") ->  | F2306: =IF(E2306<>"",E2306*($H$17/$H$16),"") -> 
B2307: =IF(A2307>0,A2307*100,"") ->  | D2307: =IF(B2307<>"",LN(B2307),"") -> 
C2370: =IF(B2370<>"",(E2370-H$16)^2,"") ->  | E2370: =IF(B2370<>"",((B2370^I$20)-I$20)/I$20,"") ->  | F2370: =IF(E2370<>"",E2370*($H$17/$H$16),"") -> 
B2371: =IF(A2371>0,A2371*100,"") ->  | D2371: =IF(B2371<>"",LN(B2371),"") -> 
C2434: =IF(B2434<>"",(E2434-H$16)^2,"") ->  | E2434: =IF(B2434<>"",((B2434^I$20)-I$20)/I$20,"") ->  | F2434: =IF(E2434<>"",E2434*($H$17/$H$16),"") -> 
B2435: =IF(A2435>0,A2435*100,"") ->  | D2435: =IF(B2435<>"",LN(B2435),"") -> 
C2498: =IF(B2498<>"",(E2498-H$16)^2,"") ->  | E2498: =IF(B2498<>"",((B2498^I$20)-I$20)/I$20,"") ->  | F2498: =IF(E2498<>"",E2498*($H$17/$H$16),"") -> 
B2499: =IF(A2499>0,A2499*100,"") ->  | D2499: =IF(B2499<>"",LN(B2499),"") -> 
C2562: =IF(B2562<>"",(E2562-H$16)^2,"") ->  | E2562: =IF(B2562<>"",((B2562^I$20)-I$20)/I$20,"") ->  | F2562: =IF(E2562<>"",E2562*($H$17/$H$16),"") -> 
B2563: =IF(A2563>0,A2563*100,"") ->  | D2563: =IF(B2563<>"",LN(B2563),"") -> 
C2626: =IF(B2626<>"",(E2626-H$16)^2,"") ->  | E2626: =IF(B2626<>"",((B2626^I$20)-I$20)/I$20,"") ->  | F2626: =IF(E2626<>"",E2626*($H$17/$H$16),"") -> 
B2627: =IF(A2627>0,A2627*100,"") ->  | D2627: =IF(B2627<>"",LN(B2627),"") -> 
C2690: =IF(B2690<>"",(E2690-H$16)^2,"") ->  | E2690: =IF(B2690<>"",((B2690^I$20)-I$20)/I$20,"") ->  | F2690: =IF(E2690<>"",E2690*($H$17/$H$16),"") -> 
B2691: =IF(A2691>0,A2691*100,"") ->  | D2691: =IF(B2691<>"",LN(B2691),"") -> 
C2754: =IF(B2754<>"",(E2754-H$16)^2,"") ->  | E2754: =IF(B2754<>"",((B2754^I$20)-I$20)/I$20,"") ->  | F2754: =IF(E2754<>"",E2754*($H$17/$H$16),"") -> 
B2755: =IF(A2755>0,A2755*100,"") ->  | D2755: =IF(B2755<>"",LN(B2755),"") -> 
C2818: =IF(B2818<>"",(E2818-H$16)^2,"") ->  | E2818: =IF(B2818<>"",((B2818^I$20)-I$20)/I$20,"") ->  | F2818: =IF(E2818<>"",E2818*($H$17/$H$16),"") -> 
B2819: =IF(A2819>0,A2819*100,"") ->  | D2819: =IF(B2819<>"",LN(B2819),"") -> 
C2882: =IF(B2882<>"",(E2882-H$16)^2,"") ->  | E2882: =IF(B2882<>"",((B2882^I$20)-I$20)/I$20,"") ->  | F2882: =IF(E2882<>"",E2882*($H$17/$H$16),"") -> 
B2883: =IF(A2883>0,A2883*100,"") ->  | D2883: =IF(B2883<>"",LN(B2883),"") -> 
C2946: =IF(B2946<>"",(E2946-H$16)^2,"") ->  | E2946: =IF(B2946<>"",((B2946^I$20)-I$20)/I$20,"") ->  | F2946: =IF(E2946<>"",E2946*($H$17/$H$16),"") -> 
B2947: =IF(A2947>0,A2947*100,"") ->  | D2947: =IF(B2947<>"",LN(B2947),"") -> 
C3010: =IF(B3010<>"",(E3010-H$16)^2,"") ->  | E3010: =IF(B3010<>"",((B3010^I$20)-I$20)/I$20,"") ->  | F3010: =IF(E3010<>"",E3010*($H$17/$H$16),"") -> 
B3011: =IF(A3011>0,A3011*100,"") ->  | D3011: =IF(B3011<>"",LN(B3011),"") -> 
C3074: =IF(B3074<>"",(E3074-H$16)^2,"") ->  | E3074: =IF(B3074<>"",((B3074^I$20)-I$20)/I$20,"") ->  | F3074: =IF(E3074<>"",E3074*($H$17/$H$16),"") -> 
B3075: =IF(A3075>0,A3075*100,"") ->  | D3075: =IF(B3075<>"",LN(B3075),"") -> 
C3138: =IF(B3138<>"",(E3138-H$16)^2,"") ->  | E3138: =IF(B3138<>"",((B3138^I$20)-I$20)/I$20,"") ->  | F3138: =IF(E3138<>"",E3138*($H$17/$H$16),"") -> 
B3139: =IF(A3139>0,A3139*100,"") ->  | D3139: =IF(B3139<>"",LN(B3139),"") -> 
C3202: =IF(B3202<>"",(E3202-H$16)^2,"") ->  | E3202: =IF(B3202<>"",((B3202^I$20)-I$20)/I$20,"") ->  | F3202: =IF(E3202<>"",E3202*($H$17/$H$16),"") -> 
B3203: =IF(A3203>0,A3203*100,"") ->  | D3203: =IF(B3203<>"",LN(B3203),"") -> 
C3266: =IF(B3266<>"",(E3266-H$16)^2,"") ->  | E3266: =IF(B3266<>"",((B3266^I$20)-I$20)/I$20,"") ->  | F3266: =IF(E3266<>"",E3266*($H$17/$H$16),"") -> 
B3267: =IF(A3267>0,A3267*100,"") ->  | D3267: =IF(B3267<>"",LN(B3267),"") -> 
C3330: =IF(B3330<>"",(E3330-H$16)^2,"") ->  | E3330: =IF(B3330<>"",((B3330^I$20)-I$20)/I$20,"") ->  | F3330: =IF(E3330<>"",E3330*($H$17/$H$16),"") -> 
B3331: =IF(A3331>0,A3331*100,"") ->  | D3331: =IF(B3331<>"",LN(B3331),"") -> 
C3394: =IF(B3394<>"",(E3394-H$16)^2,"") ->  | E3394: =IF(B3394<>"",((B3394^I$20)-I$20)/I$20,"") ->  | F3394: =IF(E3394<>"",E3394*($H$17/$H$16),"") -> 
B3395: =IF(A3395>0,A3395*100,"") ->  | D3395: =IF(B3395<>"",LN(B3395),"") -> 
C3458: =IF(B3458<>"",(E3458-H$16)^2,"") ->  | E3458: =IF(B3458<>"",((B3458^I$20)-I$20)/I$20,"") ->  | F3458: =IF(E3458<>"",E3458*($H$17/$H$16),"") -> 
B3459: =IF(A3459>0,A3459*100,"") ->  | D3459: =IF(B3459<>"",LN(B3459),"") -> 
C3522: =IF(B3522<>"",(E3522-H$16)^2,"") ->  | E3522: =IF(B3522<>"",((B3522^I$20)-I$20)/I$20,"") ->  | F3522: =IF(E3522<>"",E3522*($H$17/$H$16),"") -> 
B3523: =IF(A3523>0,A3523*100,"") ->  | D3523: =IF(B3523<>"",LN(B3523),"") -> 
C3586: =IF(B3586<>"",(E3586-H$16)^2,"") ->  | E3586: =IF(B3586<>"",((B3586^I$20)-I$20)/I$20,"") ->  | F3586: =IF(E3586<>"",E3586*($H$17/$H$16),"") -> 
B3587: =IF(A3587>0,A3587*100,"") ->  | D3587: =IF(B3587<>"",LN(B3587),"") -> 
C3650: =IF(B3650<>"",(E3650-H$16)^2,"") ->  | E3650: =IF(B3650<>"",((B3650^I$20)-I$20)/I$20,"") ->  | F3650: =IF(E3650<>"",E3650*($H$17/$H$16),"") -> 
B3651: =IF(A3651>0,A3651*100,"") ->  | D3651: =IF(B3651<>"",LN(B3651),"") -> 
C3714: =IF(B3714<>"",(E3714-H$16)^2,"") ->  | E3714: =IF(B3714<>"",((B3714^I$20)-I$20)/I$20,"") ->  | F3714: =IF(E3714<>"",E3714*($H$17/$H$16),"") -> 
B3715: =IF(A3715>0,A3715*100,"") ->  | D3715: =IF(B3715<>"",LN(B3715),"") -> 
C3778: =IF(B3778<>"",(E3778-H$16)^2,"") ->  | E3778: =IF(B3778<>"",((B3778^I$20)-I$20)/I$20,"") ->  | F3778: =IF(E3778<>"",E3778*($H$17/$H$16),"") -> 
B3779: =IF(A3779>0,A3779*100,"") ->  | D3779: =IF(B3779<>"",LN(B3779),"") -> 
C3842: =IF(B3842<>"",(E3842-H$16)^2,"") ->  | E3842: =IF(B3842<>"",((B3842^I$20)-I$20)/I$20,"") ->  | F3842: =IF(E3842<>"",E3842*($H$17/$H$16),"") -> 
B3843: =IF(A3843>0,A3843*100,"") ->  | D3843: =IF(B3843<>"",LN(B3843),"") -> 
C3906: =IF(B3906<>"",(E3906-H$16)^2,"") ->  | E3906: =IF(B3906<>"",((B3906^I$20)-I$20)/I$20,"") ->  | F3906: =IF(E3906<>"",E3906*($H$17/$H$16),"") -> 
B3907: =IF(A3907>0,A3907*100,"") ->  | D3907: =IF(B3907<>"",LN(B3907),"") -> 
C3970: =IF(B3970<>"",(E3970-H$16)^2,"") ->  | E3970: =IF(B3970<>"",((B3970^I$20)-I$20)/I$20,"") ->  | F3970: =IF(E3970<>"",E3970*($H$17/$H$16),"") -> 
B3971: =IF(A3971>0,A3971*100,"") ->  | D3971: =IF(B3971<>"",LN(B3971),"") -> 
C4034: =IF(B4034<>"",(E4034-H$16)^2,"") ->  | E4034: =IF(B4034<>"",((B4034^I$20)-I$20)/I$20,"") ->  | F4034: =IF(E4034<>"",E4034*($H$17/$H$16),"") -> 
B4035: =IF(A4035>0,A4035*100,"") ->  | D4035: =IF(B4035<>"",LN(B4035),"") -> 
C4098: =IF(B4098<>"",(E4098-H$16)^2,"") ->  | E4098: =IF(B4098<>"",((B4098^I$20)-I$20)/I$20,"") ->  | F4098: =IF(E4098<>"",E4098*($H$17/$H$16),"") -> 
B4099: =IF(A4099>0,A4099*100,"") ->  | D4099: =IF(B4099<>"",LN(B4099),"") -> 
C4162: =IF(B4162<>"",(E4162-H$16)^2,"") ->  | E4162: =IF(B4162<>"",((B4162^I$20)-I$20)/I$20,"") ->  | F4162: =IF(E4162<>"",E4162*($H$17/$H$16),"") -> 
B4163: =IF(A4163>0,A4163*100,"") ->  | D4163: =IF(B4163<>"",LN(B4163),"") -> 
C4226: =IF(B4226<>"",(E4226-H$16)^2,"") ->  | E4226: =IF(B4226<>"",((B4226^I$20)-I$20)/I$20,"") ->  | F4226: =IF(E4226<>"",E4226*($H$17/$H$16),"") -> 
B4227: =IF(A4227>0,A4227*100,"") ->  | D4227: =IF(B4227<>"",LN(B4227),"") -> 
C4290: =IF(B4290<>"",(E4290-H$16)^2,"") ->  | E4290: =IF(B4290<>"",((B4290^I$20)-I$20)/I$20,"") ->  | F4290: =IF(E4290<>"",E4290*($H$17/$H$16),"") -> 
B4291: =IF(A4291>0,A4291*100,"") ->  | D4291: =IF(B4291<>"",LN(B4291),"") -> 
C4354: =IF(B4354<>"",(E4354-H$16)^2,"") ->  | E4354: =IF(B4354<>"",((B4354^I$20)-I$20)/I$20,"") ->  | F4354: =IF(E4354<>"",E4354*($H$17/$H$16),"") -> 
B4355: =IF(A4355>0,A4355*100,"") ->  | D4355: =IF(B4355<>"",LN(B4355),"") -> 
C4418: =IF(B4418<>"",(E4418-H$16)^2,"") ->  | E4418: =IF(B4418<>"",((B4418^I$20)-I$20)/I$20,"") ->  | F4418: =IF(E4418<>"",E4418*($H$17/$H$16),"") -> 
B4419: =IF(A4419>0,A4419*100,"") ->  | D4419: =IF(B4419<>"",LN(B4419),"") -> 
C4482: =IF(B4482<>"",(E4482-H$16)^2,"") ->  | E4482: =IF(B4482<>"",((B4482^I$20)-I$20)/I$20,"") ->  | F4482: =IF(E4482<>"",E4482*($H$17/$H$16),"") -> 
B4483: =IF(A4483>0,A4483*100,"") ->  | D4483: =IF(B4483<>"",LN(B4483),"") -> 
C4546: =IF(B4546<>"",(E4546-H$16)^2,"") ->  | E4546: =IF(B4546<>"",((B4546^I$20)-I$20)/I$20,"") ->  | F4546: =IF(E4546<>"",E4546*($H$17/$H$16),"") -> 
B4547: =IF(A4547>0,A4547*100,"") ->  | D4547: =IF(B4547<>"",LN(B4547),"") -> 
C4610: =IF(B4610<>"",(E4610-H$16)^2,"") ->  | E4610: =IF(B4610<>"",((B4610^I$20)-I$20)/I$20,"") ->  | F4610: =IF(E4610<>"",E4610*($H$17/$H$16),"") -> 
B4611: =IF(A4611>0,A4611*100,"") ->  | D4611: =IF(B4611<>"",LN(B4611),"") -> 
C4674: =IF(B4674<>"",(E4674-H$16)^2,"") ->  | E4674: =IF(B4674<>"",((B4674^I$20)-I$20)/I$20,"") ->  | F4674: =IF(E4674<>"",E4674*($H$17/$H$16),"") -> 
B4675: =IF(A4675>0,A4675*100,"") ->  | D4675: =IF(B4675<>"",LN(B4675),"") -> 
C4738: =IF(B4738<>"",(E4738-H$16)^2,"") ->  | E4738: =IF(B4738<>"",((B4738^I$20)-I$20)/I$20,"") ->  | F4738: =IF(E4738<>"",E4738*($H$17/$H$16),"") -> 
B4739: =IF(A4739>0,A4739*100,"") ->  | D4739: =IF(B4739<>"",LN(B4739),"") -> 
C4802: =IF(B4802<>"",(E4802-H$16)^2,"") ->  | E4802: =IF(B4802<>"",((B4802^I$20)-I$20)/I$20,"") ->  | F4802: =IF(E4802<>"",E4802*($H$17/$H$16),"") -> 
B4803: =IF(A4803>0,A4803*100,"") ->  | D4803: =IF(B4803<>"",LN(B4803),"") -> 
C4866: =IF(B4866<>"",(E4866-H$16)^2,"") ->  | E4866: =IF(B4866<>"",((B4866^I$20)-I$20)/I$20,"") ->  | F4866: =IF(E4866<>"",E4866*($H$17/$H$16),"") -> 
B4867: =IF(A4867>0,A4867*100,"") ->  | D4867: =IF(B4867<>"",LN(B4867),"") -> 
C4930: =IF(B4930<>"",(E4930-H$16)^2,"") ->  | E4930: =IF(B4930<>"",((B4930^I$20)-I$20)/I$20,"") ->  | F4930: =IF(E4930<>"",E4930*($H$17/$H$16),"") -> 
B4931: =IF(A4931>0,A4931*100,"") ->  | D4931: =IF(B4931<>"",LN(B4931),"") -> 
C4994: =IF(B4994<>"",(E4994-H$16)^2,"") ->  | E4994: =IF(B4994<>"",((B4994^I$20)-I$20)/I$20,"") ->  | F4994: =IF(E4994<>"",E4994*($H$17/$H$16),"") -> 
B4995: =IF(A4995>0,A4995*100,"") ->  | D4995: =IF(B4995<>"",LN(B4995),"") -> 
C5058: =IF(B5058<>"",(E5058-H$16)^2,"") ->  | E5058: =IF(B5058<>"",((B5058^I$20)-I$20)/I$20,"") ->  | F5058: =IF(E5058<>"",E5058*($H$17/$H$16),"") -> 
B5059: =IF(A5059>0,A5059*100,"") ->  | D5059: =IF(B5059<>"",LN(B5059),"") -> 
C5122: =IF(B5122<>"",(E5122-H$16)^2,"") ->  | E5122: =IF(B5122<>"",((B5122^I$20)-I$20)/I$20,"") ->  | F5122: =IF(E5122<>"",E5122*($H$17/$H$16),"") -> 
B5123: =IF(A5123>0,A5123*100,"") ->  | D5123: =IF(B5123<>"",LN(B5123),"") -> 
C5186: =IF(B5186<>"",(E5186-H$16)^2,"") ->  | E5186: =IF(B5186<>"",((B5186^I$20)-I$20)/I$20,"") ->  | F5186: =IF(E5186<>"",E5186*($H$17/$H$16),"") -> 
B5187: =IF(A5187>0,A5187*100,"") ->  | D5187: =IF(B5187<>"",LN(B5187),"") -> 
C5250: =IF(B5250<>"",(E5250-H$16)^2,"") ->  | E5250: =IF(B5250<>"",((B5250^I$20)-I$20)/I$20,"") ->  | F5250: =IF(E5250<>"",E5250*($H$17/$H$16),"") -> 
B5251: =IF(A5251>0,A5251*100,"") ->  | D5251: =IF(B5251<>"",LN(B5251),"") -> 
C5314: =IF(B5314<>"",(E5314-H$16)^2,"") ->  | E5314: =IF(B5314<>"",((B5314^I$20)-I$20)/I$20,"") ->  | F5314: =IF(E5314<>"",E5314*($H$17/$H$16),"") -> 
B5315: =IF(A5315>0,A5315*100,"") ->  | D5315: =IF(B5315<>"",LN(B5315),"") -> 
C5378: =IF(B5378<>"",(E5378-H$16)^2,"") ->  | E5378: =IF(B5378<>"",((B5378^I$20)-I$20)/I$20,"") ->  | F5378: =IF(E5378<>"",E5378*($H$17/$H$16),"") -> 
B5379: =IF(A5379>0,A5379*100,"") ->  | D5379: =IF(B5379<>"",LN(B5379),"") -> 
C5442: =IF(B5442<>"",(E5442-H$16)^2,"") ->  | E5442: =IF(B5442<>"",((B5442^I$20)-I$20)/I$20,"") ->  | F5442: =IF(E5442<>"",E5442*($H$17/$H$16),"") -> 
B5443: =IF(A5443>0,A5443*100,"") ->  | D5443: =IF(B5443<>"",LN(B5443),"") -> 
C5506: =IF(B5506<>"",(E5506-H$16)^2,"") ->  | E5506: =IF(B5506<>"",((B5506^I$20)-I$20)/I$20,"") ->  | F5506: =IF(E5506<>"",E5506*($H$17/$H$16),"") -> 
B5507: =IF(A5507>0,A5507*100,"") ->  | D5507: =IF(B5507<>"",LN(B5507),"") -> 
C5570: =IF(B5570<>"",(E5570-H$16)^2,"") ->  | E5570: =IF(B5570<>"",((B5570^I$20)-I$20)/I$20,"") ->  | F5570: =IF(E5570<>"",E5570*($H$17/$H$16),"") -> 
B5571: =IF(A5571>0,A5571*100,"") ->  | D5571: =IF(B5571<>"",LN(B5571),"") -> 
C5634: =IF(B5634<>"",(E5634-H$16)^2,"") ->  | E5634: =IF(B5634<>"",((B5634^I$20)-I$20)/I$20,"") ->  | F5634: =IF(E5634<>"",E5634*($H$17/$H$16),"") -> 
B5635: =IF(A5635>0,A5635*100,"") ->  | D5635: =IF(B5635<>"",LN(B5635),"") -> 
C5698: =IF(B5698<>"",(E5698-H$16)^2,"") ->  | E5698: =IF(B5698<>"",((B5698^I$20)-I$20)/I$20,"") ->  | F5698: =IF(E5698<>"",E5698*($H$17/$H$16),"") -> 
B5699: =IF(A5699>0,A5699*100,"") ->  | D5699: =IF(B5699<>"",LN(B5699),"") -> 
C5762: =IF(B5762<>"",(E5762-H$16)^2,"") ->  | E5762: =IF(B5762<>"",((B5762^I$20)-I$20)/I$20,"") ->  | F5762: =IF(E5762<>"",E5762*($H$17/$H$16),"") -> 
B5763: =IF(A5763>0,A5763*100,"") ->  | D5763: =IF(B5763<>"",LN(B5763),"") -> 
C5826: =IF(B5826<>"",(E5826-H$16)^2,"") ->  | E5826: =IF(B5826<>"",((B5826^I$20)-I$20)/I$20,"") ->  | F5826: =IF(E5826<>"",E5826*($H$17/$H$16),"") -> 
... 131 more rows
